[Event "*** SCC Grand Prix: Titled Tuesday Blitz"]
[Site "Chess.com"]
[Date "2020.08.04"]
[Round "6"]
[White "Hangar-18"]
[Black "cukin84"]
[Result "1-0"]
[WhiteElo "2360"]
[BlackElo "2173"]
[TimeControl "180+1"]
[EndTime "14:50:00 PDT"]
[Termination "Hangar-18 won by resignation"]

1. Nf3 {[%clk 0:03:00.9]} 1... f5 {[%clk 0:02:59]} 2. d3 {[%clk 0:02:59.3]} 2...
Nf6 {[%clk 0:02:58.5]} 3. e4 {[%clk 0:02:57.7]} 3... fxe4 {[%clk 0:02:57.8]} 4.
dxe4 {[%clk 0:02:58.6]} 4... d6 {[%clk 0:02:57.8]} 5. Nc3 {[%clk 0:02:59]} 5...
e5 {[%clk 0:02:56.9]} 6. h3 {[%clk 0:02:57.2]} 6... Be6 {[%clk 0:02:55.5]} 7.
Bg5 {[%clk 0:02:52.4]} 7... Qd7 {[%clk 0:02:50.9]} 8. Qd2 {[%clk 0:02:52]} 8...
Nc6 {[%clk 0:02:50.2]} 9. O-O-O {[%clk 0:02:50.4]} 9... h6 {[%clk 0:02:48.1]}
10. Bxf6 {[%clk 0:02:33.6]} 10... gxf6 {[%clk 0:02:47.5]} 11. Nd5 {[%clk
0:02:34.5]} 11... Bg7 {[%clk 0:02:36.6]} 12. Nh4 {[%clk 0:02:26.9]} 12... h5
{[%clk 0:02:35.8]} 13. Kb1 {[%clk 0:02:26.6]} 13... O-O-O {[%clk 0:02:19.7]} 14.
Bb5 {[%clk 0:02:24.9]} 14... Qe8 {[%clk 0:02:00.3]} 15. Nf5 {[%clk 0:02:17.2]}
15... Rg8 {[%clk 0:01:48.4]} 16. Nfe7+ {[%clk 0:01:47.6]} 16... Kd7 {[%clk
0:01:34.9]} 17. Nxg8 {[%clk 0:00:50.8]} 17... Qxg8 {[%clk 0:01:33.6]} 18. b3
{[%clk 0:00:34.2]} 18... a6 {[%clk 0:01:33]} 19. Bxc6+ {[%clk 0:00:34]} 19...
bxc6 {[%clk 0:01:32.8]} 20. Nb4 {[%clk 0:00:34.5]} 20... a5 {[%clk 0:01:30.6]}
21. Nd3 {[%clk 0:00:35.1]} 21... a4 {[%clk 0:01:27.3]} 22. Nc5+ {[%clk 0:00:35]}
22... Ke7 {[%clk 0:01:24]} 23. Nxa4 {[%clk 0:00:35.3]} 23... Qh7 {[%clk
0:01:14.5]} 24. f3 {[%clk 0:00:33.7]} 24... Bh6 {[%clk 0:01:13.9]} 25. Qc3
{[%clk 0:00:34.3]} 25... c5 {[%clk 0:01:10.1]} 26. Nxc5 {[%clk 0:00:30.7]} 26...
Bc8 {[%clk 0:00:55.4]} 27. a4 {[%clk 0:00:28.6]} 27... Bf4 {[%clk 0:00:45.7]}
28. a5 {[%clk 0:00:26.4]} 28... Qh6 {[%clk 0:00:45.5]} 29. a6 {[%clk 0:00:21.8]}
29... Be3 {[%clk 0:00:45.6]} 30. a7 {[%clk 0:00:21.9]} 30... Be6 {[%clk
0:00:38.9]} 31. Nxe6 {[%clk 0:00:22]} 31... Kxe6 {[%clk 0:00:38.9]} 32. Qc4+
{[%clk 0:00:22.2]} 32... Ke7 {[%clk 0:00:38.3]} 33. Qxc7+ {[%clk 0:00:22.2]}
33... Ke8 {[%clk 0:00:36.1]} 34. Qxd8+ {[%clk 0:00:20.7]} 34... Kxd8 {[%clk
0:00:35.9]} 35. a8=Q+ {[%clk 0:00:21.6]} 1-0

[Event "*** SCC Grand Prix: Titled Tuesday Blitz"]
[Site "Chess.com"]
[Date "2020.08.04"]
[Round "6"]
[White "SilviusTiberius"]
[Black "ketster"]
[Result "1-0"]
[WhiteElo "2514"]
[BlackElo "2385"]
[TimeControl "180+1"]
[EndTime "14:50:06 PDT"]
[Termination "SilviusTiberius won by resignation"]

1. e4 {[%clk 0:03:00.9]} 1... e5 {[%clk 0:02:59.7]} 2. Nf3 {[%clk 0:03:00.7]}
2... Nc6 {[%clk 0:02:58.8]} 3. Bb5 {[%clk 0:03:00.8]} 3... a6 {[%clk 0:02:58.9]}
4. Ba4 {[%clk 0:03:00.2]} 4... b5 {[%clk 0:02:58.3]} 5. Bb3 {[%clk 0:03:00]}
5... Nf6 {[%clk 0:02:58.2]} 6. O-O {[%clk 0:02:56.3]} 6... Be7 {[%clk 0:02:57]}
7. Re1 {[%clk 0:02:52.9]} 7... d6 {[%clk 0:02:53.3]} 8. c3 {[%clk 0:02:51.9]}
8... O-O {[%clk 0:02:52.7]} 9. h3 {[%clk 0:02:52.2]} 9... Nd7 {[%clk 0:02:52.5]}
10. d4 {[%clk 0:02:51]} 10... Bf6 {[%clk 0:02:49.7]} 11. Be3 {[%clk 0:02:49.4]}
11... Na5 {[%clk 0:02:48.8]} 12. Bc2 {[%clk 0:02:45.7]} 12... Nc4 {[%clk
0:02:48.4]} 13. Bc1 {[%clk 0:02:46.1]} 13... c5 {[%clk 0:02:47.2]} 14. d5 {[%clk
0:02:39.6]} 14... g6 {[%clk 0:02:42.9]} 15. a4 {[%clk 0:02:38.7]} 15... Bb7
{[%clk 0:02:29.3]} 16. Bd3 {[%clk 0:02:34]} 16... Ncb6 {[%clk 0:02:16.2]} 17.
axb5 {[%clk 0:02:29.6]} 17... c4 {[%clk 0:02:14.2]} 18. Bf1 {[%clk 0:02:23.6]}
18... axb5 {[%clk 0:02:14]} 19. Na3 {[%clk 0:02:22.1]} 19... Ba6 {[%clk
0:02:06.1]} 20. Bh6 {[%clk 0:02:16.2]} 20... Bg7 {[%clk 0:02:04.9]} 21. Bxg7
{[%clk 0:02:14.3]} 21... Kxg7 {[%clk 0:02:05.8]} 22. Nc2 {[%clk 0:02:14.7]}
22... Na4 {[%clk 0:02:01.5]} 23. Qc1 {[%clk 0:02:10.3]} 23... Ndc5 {[%clk
0:01:59.4]} 24. Ra2 {[%clk 0:02:02.6]} 24... Nb3 {[%clk 0:01:57.7]} 25. Qe3
{[%clk 0:02:00.8]} 25... Nac5 {[%clk 0:01:52.4]} 26. Nd2 {[%clk 0:01:48.5]}
26... Bb7 {[%clk 0:01:49.3]} 27. Rxa8 {[%clk 0:01:45]} 27... Qxa8 {[%clk
0:01:49.2]} 28. Nxb3 {[%clk 0:01:42]} 28... Nxb3 {[%clk 0:01:35.7]} 29. Qb6
{[%clk 0:01:40.4]} 29... Qa6 {[%clk 0:01:34.3]} 30. Qxa6 {[%clk 0:01:40.5]}
30... Bxa6 {[%clk 0:01:35.2]} 31. Nb4 {[%clk 0:01:40.9]} 31... Bb7 {[%clk
0:01:33.9]} 32. g3 {[%clk 0:01:35.9]} 32... f5 {[%clk 0:01:33.6]} 33. f4 {[%clk
0:01:29.7]} 33... fxe4 {[%clk 0:00:56.8]} 34. fxe5 {[%clk 0:01:26.4]} 34... Nd2
{[%clk 0:00:49.3]} 35. Bg2 {[%clk 0:01:19.4]} 35... dxe5 {[%clk 0:00:41.9]} 36.
Bxe4 {[%clk 0:01:17.4]} 36... Rd8 {[%clk 0:00:38.6]} 37. Bg2 {[%clk 0:01:15.5]}
37... Kf6 {[%clk 0:00:31.5]} 38. Re2 {[%clk 0:01:15.7]} 38... Nb3 {[%clk
0:00:31]} 39. Rf2+ {[%clk 0:01:15.5]} 39... Ke7 {[%clk 0:00:30.5]} 40. d6+
{[%clk 0:01:15.3]} 40... Rxd6 {[%clk 0:00:25.9]} 41. Bxb7 {[%clk 0:01:15.7]}
41... Rd1+ {[%clk 0:00:25.7]} 42. Kg2 {[%clk 0:01:15.7]} 42... Nc1 {[%clk
0:00:23.8]} 43. Bf3 {[%clk 0:01:08.4]} 43... Re1 {[%clk 0:00:22.5]} 44. Rf1
{[%clk 0:01:05.2]} 44... Re3 {[%clk 0:00:19.7]} 45. Nd5+ {[%clk 0:01:04.3]} 1-0

[Event "*** SCC Grand Prix: Titled Tuesday Blitz"]
[Site "Chess.com"]
[Date "2020.08.04"]
[Round "6"]
[White "AndrewDGreen"]
[Black "GoltsevDmitry2000"]
[Result "0-1"]
[WhiteElo "2395"]
[BlackElo "2618"]
[TimeControl "180+1"]
[EndTime "14:50:09 PDT"]
[Termination "GoltsevDmitry2000 won by resignation"]

1. d4 {[%clk 0:03:00.9]} 1... c6 {[%clk 0:02:59.7]} 2. Nf3 {[%clk 0:02:59.1]}
2... d5 {[%clk 0:03:00.6]} 3. Bf4 {[%clk 0:02:58.5]} 3... Nf6 {[%clk 0:03:01.5]}
4. e3 {[%clk 0:02:56]} 4... Nbd7 {[%clk 0:03:02.4]} 5. c4 {[%clk 0:02:53]} 5...
Nh5 {[%clk 0:03:01.2]} 6. Bg5 {[%clk 0:02:48.6]} 6... h6 {[%clk 0:02:53.8]} 7.
Bh4 {[%clk 0:02:48.7]} 7... g5 {[%clk 0:02:50.8]} 8. Nfd2 {[%clk 0:02:44.8]}
8... Nhf6 {[%clk 0:02:35.8]} 9. Bg3 {[%clk 0:02:44.7]} 9... e6 {[%clk
0:02:36.2]} 10. Nc3 {[%clk 0:02:42]} 10... Bb4 {[%clk 0:02:35.2]} 11. Qc2 {[%clk
0:02:35.3]} 11... a6 {[%clk 0:02:28.3]} 12. h3 {[%clk 0:02:29.6]} 12... b5
{[%clk 0:02:25.7]} 13. c5 {[%clk 0:02:24]} 13... Ba5 {[%clk 0:02:22.8]} 14. a3
{[%clk 0:02:20.5]} 14... Bc7 {[%clk 0:02:22.6]} 15. Bxc7 {[%clk 0:02:18.5]}
15... Qxc7 {[%clk 0:02:23.5]} 16. Bd3 {[%clk 0:02:05.8]} 16... e5 {[%clk
0:02:19.2]} 17. O-O {[%clk 0:02:03.4]} 17... O-O {[%clk 0:02:16.9]} 18. b4
{[%clk 0:01:50.9]} 18... Re8 {[%clk 0:02:16.1]} 19. a4 {[%clk 0:01:47.8]} 19...
Bb7 {[%clk 0:02:07.5]} 20. Nb3 {[%clk 0:01:44.5]} 20... e4 {[%clk 0:02:03.6]}
21. Be2 {[%clk 0:01:42.8]} 21... Nf8 {[%clk 0:02:03.7]} 22. Ra2 {[%clk
0:01:38.3]} 22... Ng6 {[%clk 0:02:02.4]} 23. Rfa1 {[%clk 0:01:37]} 23... h5
{[%clk 0:01:56.2]} 24. axb5 {[%clk 0:01:32.4]} 24... axb5 {[%clk 0:01:57.1]} 25.
Ra7 {[%clk 0:01:30.3]} 25... Rxa7 {[%clk 0:01:55.9]} 26. Rxa7 {[%clk 0:01:31.2]}
26... Ra8 {[%clk 0:01:56.1]} 27. Qa2 {[%clk 0:01:29.6]} 27... Qb8 {[%clk
0:01:51.9]} 28. Rxa8 {[%clk 0:01:20.4]} 28... Qxa8 {[%clk 0:01:52.8]} 29. Qxa8+
{[%clk 0:01:15.2]} 29... Bxa8 {[%clk 0:01:53.7]} 30. f3 {[%clk 0:01:03.3]} 30...
exf3 {[%clk 0:01:50]} 31. gxf3 {[%clk 0:01:04.2]} 31... Ne7 {[%clk 0:01:48.6]}
32. Bd3 {[%clk 0:01:01.5]} 32... Bb7 {[%clk 0:01:46.7]} 33. Na5 {[%clk
0:00:59.9]} 33... Bc8 {[%clk 0:01:45.6]} 34. Kg2 {[%clk 0:00:55.8]} 34... Bd7
{[%clk 0:01:34.7]} 35. Ne2 {[%clk 0:00:44.4]} 35... g4 {[%clk 0:01:32.3]} 36.
hxg4 {[%clk 0:00:43.9]} 36... hxg4 {[%clk 0:01:33.2]} 37. f4 {[%clk 0:00:41.4]}
37... Kf8 {[%clk 0:01:29.3]} 38. Nb7 {[%clk 0:00:36.6]} 38... Bf5 {[%clk
0:01:25.8]} 39. Bxf5 {[%clk 0:00:30.2]} 39... Nxf5 {[%clk 0:01:26.7]} 40. Kf2
{[%clk 0:00:28]} 40... Ne4+ {[%clk 0:01:25.9]} 41. Ke1 {[%clk 0:00:22.2]} 41...
Nxe3 {[%clk 0:01:26.1]} 42. Nd8 {[%clk 0:00:20.5]} 42... Nc2+ {[%clk 0:01:26.3]}
43. Kf1 {[%clk 0:00:19.5]} 43... Nxb4 {[%clk 0:01:27.2]} 44. Kg2 {[%clk
0:00:16.6]} 44... Ke7 {[%clk 0:01:27.2]} 45. Nb7 {[%clk 0:00:16.6]} 45... Nd3
{[%clk 0:01:26.5]} 46. Ng3 {[%clk 0:00:16.3]} 46... Nxg3 {[%clk 0:01:25.9]} 47.
Kxg3 {[%clk 0:00:17.2]} 47... b4 {[%clk 0:01:26.8]} 48. Na5 {[%clk 0:00:16.5]}
48... Kd7 {[%clk 0:01:26.2]} 49. Kxg4 {[%clk 0:00:16.4]} 49... Nc1 {[%clk
0:01:26.4]} 50. Kf5 {[%clk 0:00:14.9]} 50... b3 {[%clk 0:01:26.8]} 51. Nxb3
{[%clk 0:00:14.7]} 51... Nxb3 {[%clk 0:01:27.7]} 52. Kf6 {[%clk 0:00:15.6]}
52... Nxd4 {[%clk 0:01:27.4]} 53. Kxf7 {[%clk 0:00:16.5]} 53... Nb3 {[%clk
0:01:28.3]} 54. f5 {[%clk 0:00:16.4]} 54... Nxc5 {[%clk 0:01:29.2]} 55. f6
{[%clk 0:00:17.3]} 55... Ne4 {[%clk 0:01:30]} 56. Kg7 {[%clk 0:00:17.4]} 56...
Nxf6 {[%clk 0:01:30.9]} 57. Kxf6 {[%clk 0:00:17.9]} 57... d4 {[%clk 0:01:31.8]}
0-1

[Event "*** SCC Grand Prix: Titled Tuesday Blitz"]
[Site "Chess.com"]
[Date "2020.08.04"]
[Round "6"]
[White "dopolian"]
[Black "Mazetovic"]
[Result "0-1"]
[WhiteElo "2497"]
[BlackElo "2706"]
[TimeControl "180+1"]
[EndTime "14:50:13 PDT"]
[Termination "Mazetovic won on time"]

1. e4 {[%clk 0:03:00.9]} 1... c5 {[%clk 0:02:59.7]} 2. Nf3 {[%clk 0:03:00.9]}
2... Nc6 {[%clk 0:02:59.6]} 3. d4 {[%clk 0:03:01.1]} 3... cxd4 {[%clk
0:02:59.9]} 4. Nxd4 {[%clk 0:03:02]} 4... g6 {[%clk 0:03:00.6]} 5. c4 {[%clk
0:03:01.4]} 5... Bg7 {[%clk 0:03:00.8]} 6. Nc2 {[%clk 0:03:01.7]} 6... Nf6
{[%clk 0:03:00.5]} 7. Nc3 {[%clk 0:03:01.9]} 7... d6 {[%clk 0:03:00.4]} 8. Be2
{[%clk 0:03:01.6]} 8... Nd7 {[%clk 0:03:00.7]} 9. O-O {[%clk 0:02:59]} 9... Bxc3
{[%clk 0:02:57.4]} 10. bxc3 {[%clk 0:02:58.8]} 10... Nc5 {[%clk 0:02:57.5]} 11.
f3 {[%clk 0:02:56.4]} 11... f6 {[%clk 0:02:57.4]} 12. Bh6 {[%clk 0:02:43.5]}
12... Be6 {[%clk 0:02:53.3]} 13. Nd4 {[%clk 0:02:39.7]} 13... Bf7 {[%clk
0:02:51.9]} 14. Nb3 {[%clk 0:02:32]} 14... b6 {[%clk 0:02:46.9]} 15. Qd2 {[%clk
0:02:06.5]} 15... Rg8 {[%clk 0:02:46]} 16. Be3 {[%clk 0:02:04.8]} 16... Ne5
{[%clk 0:02:41.5]} 17. Qd4 {[%clk 0:01:50.1]} 17... Rc8 {[%clk 0:02:32.9]} 18.
f4 {[%clk 0:01:36.6]} 18... Ned7 {[%clk 0:02:28.6]} 19. Rad1 {[%clk 0:01:18.8]}
19... Qc7 {[%clk 0:02:28.2]} 20. g4 {[%clk 0:00:42.2]} 20... g5 {[%clk
0:02:10.8]} 21. fxg5 {[%clk 0:00:39.2]} 21... Ne6 {[%clk 0:02:10.8]} 22. Qd2
{[%clk 0:00:30.9]} 22... Nxg5 {[%clk 0:02:10.1]} 23. Bxg5 {[%clk 0:00:21.3]}
23... Rxg5 {[%clk 0:02:08.3]} 24. h4 {[%clk 0:00:19.6]} 24... Rg6 {[%clk
0:02:00.7]} 25. Nd4 {[%clk 0:00:15.8]} 25... Ne5 {[%clk 0:01:59]} 26. Qf4 {[%clk
0:00:05.3]} 26... Bxc4 {[%clk 0:01:56.3]} 27. Bxc4 {[%clk 0:00:03.4]} 27... Qxc4
{[%clk 0:01:36]} 28. g5 {[%clk 0:00:03.1]} 28... Qg8 {[%clk 0:01:33.4]} 29. Kh1
{[%clk 0:00:02.7]} 29... fxg5 {[%clk 0:01:18]} 30. Qf5 {[%clk 0:00:03.1]} 30...
e6 {[%clk 0:01:07.7]} 31. Qh3 {[%clk 0:00:02]} 31... gxh4 {[%clk 0:01:03.3]} 32.
Qxh4 {[%clk 0:00:02.6]} 32... Qg7 {[%clk 0:00:51.8]} 33. Qh2 {[%clk 0:00:01.1]}
33... Rh6 {[%clk 0:00:48.6]} 34. Rg1 {[%clk 0:00:01.4]} 34... Rxh2+ {[%clk
0:00:48]} 35. Kxh2 {[%clk 0:00:01.9]} 35... Qh6+ {[%clk 0:00:48.3]} 36. Kg2
{[%clk 0:00:01.9]} 36... Rxc3 {[%clk 0:00:48.5]} 0-1

[Event "*** SCC Grand Prix: Titled Tuesday Blitz"]
[Site "Chess.com"]
[Date "2020.08.04"]
[Round "6"]
[White "maxip32"]
[Black "Zurability"]
[Result "1-0"]
[WhiteElo "2484"]
[BlackElo "2670"]
[TimeControl "180+1"]
[EndTime "14:50:14 PDT"]
[Termination "maxip32 won on time"]

1. e4 {[%clk 0:03:00.9]} 1... c5 {[%clk 0:02:59.1]} 2. Nf3 {[%clk 0:03:01]} 2...
d6 {[%clk 0:02:59.4]} 3. d4 {[%clk 0:03:01.1]} 3... cxd4 {[%clk 0:03:00.3]} 4.
Nxd4 {[%clk 0:03:01.7]} 4... Nf6 {[%clk 0:03:01]} 5. Nc3 {[%clk 0:03:02.2]} 5...
a6 {[%clk 0:03:01.4]} 6. Bg5 {[%clk 0:03:00.3]} 6... e6 {[%clk 0:03:01]} 7. f4
{[%clk 0:03:00.6]} 7... Be7 {[%clk 0:03:01.3]} 8. Qf3 {[%clk 0:03:00.8]} 8...
Qc7 {[%clk 0:03:01.8]} 9. O-O-O {[%clk 0:02:59.3]} 9... Nbd7 {[%clk 0:02:57.7]}
10. g4 {[%clk 0:02:59]} 10... b5 {[%clk 0:02:57.4]} 11. Bxf6 {[%clk 0:02:59.2]}
11... Nxf6 {[%clk 0:02:51.7]} 12. g5 {[%clk 0:02:59.2]} 12... Nd7 {[%clk
0:02:51.1]} 13. a3 {[%clk 0:02:55.1]} 13... Bb7 {[%clk 0:02:50.5]} 14. h4 {[%clk
0:02:53.7]} 14... Nc5 {[%clk 0:02:36.6]} 15. f5 {[%clk 0:02:44.2]} 15... e5
{[%clk 0:02:16]} 16. Nb3 {[%clk 0:02:31.7]} 16... Rc8 {[%clk 0:02:13.8]} 17.
Nxc5 {[%clk 0:02:27.4]} 17... Qxc5 {[%clk 0:01:57.5]} 18. Rh2 {[%clk 0:02:24.1]}
18... b4 {[%clk 0:01:49.6]} 19. axb4 {[%clk 0:02:23.3]} 19... Qxb4 {[%clk
0:01:50.5]} 20. Nd5 {[%clk 0:02:19.7]} 20... Qa5 {[%clk 0:01:40.9]} 21. Kb1
{[%clk 0:02:14.3]} 21... Bd8 {[%clk 0:01:29.3]} 22. g6 {[%clk 0:02:06.6]} 22...
f6 {[%clk 0:00:55.9]} 23. Qb3 {[%clk 0:01:59.4]} 23... Bc6 {[%clk 0:00:44.4]}
24. gxh7 {[%clk 0:01:23.9]} 24... Ba4 {[%clk 0:00:24]} 25. Qg3 {[%clk
0:00:56.3]} 25... Kf8 {[%clk 0:00:17.2]} 26. h5 {[%clk 0:00:45.4]} 26... Qc5
{[%clk 0:00:15.1]} 27. Bd3 {[%clk 0:00:42.9]} 27... Rxh7 {[%clk 0:00:13.6]} 28.
h6 {[%clk 0:00:42.3]} 28... Qa7 {[%clk 0:00:03.2]} 29. Rg1 {[%clk 0:00:39.3]}
29... Kg8 {[%clk 0:00:01.7]} 30. Qg6 {[%clk 0:00:25.8]} 1-0

[Event "*** SCC Grand Prix: Titled Tuesday Blitz"]
[Site "Chess.com"]
[Date "2020.08.04"]
[Round "6"]
[White "Filip_Covic"]
[Black "Koalaskakistis"]
[Result "0-1"]
[WhiteElo "2356"]
[BlackElo "2507"]
[TimeControl "180+1"]
[EndTime "14:50:14 PDT"]
[Termination "Koalaskakistis won on time"]

1. e4 {[%clk 0:03:00.9]} 1... e6 {[%clk 0:02:59.1]} 2. d4 {[%clk 0:02:59.3]}
2... d5 {[%clk 0:02:59.3]} 3. Nc3 {[%clk 0:02:58.9]} 3... Nf6 {[%clk 0:02:54.1]}
4. e5 {[%clk 0:02:57.7]} 4... Nfd7 {[%clk 0:02:53.8]} 5. Nce2 {[%clk 0:02:57.9]}
5... c5 {[%clk 0:02:54.7]} 6. c3 {[%clk 0:02:58]} 6... Nc6 {[%clk 0:02:55.1]} 7.
Nf3 {[%clk 0:02:55.7]} 7... f6 {[%clk 0:02:50.9]} 8. exf6 {[%clk 0:02:33.3]}
8... Qxf6 {[%clk 0:02:50.3]} 9. Bg5 {[%clk 0:02:31.3]} 9... Qf7 {[%clk 0:02:50]}
10. Bh4 {[%clk 0:02:20.9]} 10... Bd6 {[%clk 0:02:43.5]} 11. Ng5 {[%clk 0:02:13]}
11... Qg6 {[%clk 0:02:39.6]} 12. Ng3 {[%clk 0:02:07.4]} 12... cxd4 {[%clk
0:02:25.6]} 13. Bd3 {[%clk 0:02:04.2]} 13... Qh6 {[%clk 0:02:25.8]} 14. Qh5+
{[%clk 0:01:52.1]} 14... Qxh5 {[%clk 0:02:25.5]} 15. Nxh5 {[%clk 0:01:53]} 15...
Nc5 {[%clk 0:01:58.5]} 16. Bxh7 {[%clk 0:01:49.5]} 16... dxc3 {[%clk 0:01:45.9]}
17. bxc3 {[%clk 0:01:48.2]} 17... Be5 {[%clk 0:01:33.2]} 18. O-O {[%clk
0:01:38.4]} 18... Kd7 {[%clk 0:01:29.3]} 19. Rae1 {[%clk 0:01:03.4]} 19... Bxc3
{[%clk 0:01:27.8]} 20. Re2 {[%clk 0:00:50.7]} 20... Nd4 {[%clk 0:01:19.8]} 21.
Re3 {[%clk 0:00:22.6]} 21... Bd2 {[%clk 0:01:16.1]} 22. Nxg7 {[%clk 0:00:21.4]}
22... Bxe3 {[%clk 0:00:52.9]} 23. fxe3 {[%clk 0:00:22.3]} 23... Ne2+ {[%clk
0:00:49.2]} 24. Kf2 {[%clk 0:00:18.5]} 24... Nc3 {[%clk 0:00:48.9]} 25. Ke1
{[%clk 0:00:12.4]} 25... Kc6 {[%clk 0:00:40.8]} 26. Rf7 {[%clk 0:00:08]} 26...
Bd7 {[%clk 0:00:36.2]} 27. Bg3 {[%clk 0:00:06.4]} 27... Raf8 {[%clk 0:00:35.2]}
28. Be5 {[%clk 0:00:05.4]} 28... Rxf7 {[%clk 0:00:34]} 29. Nxf7 {[%clk
0:00:01.4]} 29... Rxh7 {[%clk 0:00:34]} 30. Nd8+ {[%clk 0:00:02.3]} 30... Kb5
{[%clk 0:00:33.5]} 0-1

[Event "*** SCC Grand Prix: Titled Tuesday Blitz"]
[Site "Chess.com"]
[Date "2020.08.04"]
[Round "6"]
[White "MichailovM"]
[Black "Fortitudine"]
[Result "1/2-1/2"]
[WhiteElo "2420"]
[BlackElo "2268"]
[TimeControl "180+1"]
[EndTime "14:50:15 PDT"]
[Termination "Game drawn by agreement"]

1. e4 {[%clk 0:03:00.9]} 1... c5 {[%clk 0:02:59.3]} 2. Nf3 {[%clk 0:03:01.1]}
2... d6 {[%clk 0:02:59.2]} 3. d4 {[%clk 0:03:01.3]} 3... cxd4 {[%clk 0:03:00.1]}
4. Nxd4 {[%clk 0:03:02.2]} 4... Nf6 {[%clk 0:03:00.7]} 5. Nc3 {[%clk 0:03:02.8]}
5... Nc6 {[%clk 0:03:01.1]} 6. Bg5 {[%clk 0:03:01.8]} 6... Bd7 {[%clk
0:03:00.2]} 7. Qd2 {[%clk 0:03:02.2]} 7... Rc8 {[%clk 0:02:59.5]} 8. O-O-O
{[%clk 0:03:01.8]} 8... Nxd4 {[%clk 0:02:58.7]} 9. Qxd4 {[%clk 0:03:02.7]} 9...
Qa5 {[%clk 0:02:58.9]} 10. Bd2 {[%clk 0:03:03.2]} 10... Qc5 {[%clk 0:02:58.5]}
11. Qxc5 {[%clk 0:03:00.9]} 11... Rxc5 {[%clk 0:02:59.3]} 12. f3 {[%clk
0:03:01.5]} 12... a6 {[%clk 0:02:59.2]} 13. g4 {[%clk 0:02:57.4]} 13... h6
{[%clk 0:02:57.1]} 14. h4 {[%clk 0:02:56.4]} 14... g6 {[%clk 0:02:40.5]} 15. Be3
{[%clk 0:02:54.6]} 15... Rc8 {[%clk 0:02:39.3]} 16. Bd4 {[%clk 0:02:54.2]} 16...
e5 {[%clk 0:02:22.1]} 17. Be3 {[%clk 0:02:52.3]} 17... Be7 {[%clk 0:01:51.7]}
18. Be2 {[%clk 0:02:51.7]} 18... Kf8 {[%clk 0:01:49.8]} 19. Rhg1 {[%clk
0:02:20]} 19... Be6 {[%clk 0:01:22.8]} 20. g5 {[%clk 0:02:17.2]} 20... hxg5
{[%clk 0:01:20.2]} 21. hxg5 {[%clk 0:02:18.1]} 21... Nh5 {[%clk 0:01:16.3]} 22.
Nd5 {[%clk 0:02:16.5]} 22... Bxd5 {[%clk 0:01:12]} 23. Rxd5 {[%clk 0:02:17.4]}
23... Nf4 {[%clk 0:00:53.3]} 24. Bxf4 {[%clk 0:02:10.8]} 24... exf4 {[%clk
0:00:54.2]} 25. Kd2 {[%clk 0:01:59.9]} 25... Rh5 {[%clk 0:00:49.4]} 26. c4
{[%clk 0:01:59.3]} 26... Rc5 {[%clk 0:00:45.1]} 27. b4 {[%clk 0:01:59]} 27...
Rxd5+ {[%clk 0:00:45.1]} 28. exd5 {[%clk 0:01:59.9]} 28... Bxg5 {[%clk
0:00:42.6]} 29. c5 {[%clk 0:01:54]} 29... Be7 {[%clk 0:00:34.6]} 30. Bc4 {[%clk
0:01:34.1]} 30... dxc5 {[%clk 0:00:34]} 31. bxc5 {[%clk 0:01:35]} 31... Bxc5
{[%clk 0:00:33.9]} 32. Re1 {[%clk 0:01:32.7]} 32... Be3+ {[%clk 0:00:28.2]} 33.
Kd3 {[%clk 0:01:32.6]} 33... Ke7 {[%clk 0:00:28.2]} 34. a4 {[%clk 0:01:32]}
34... b5 {[%clk 0:00:21.4]} 35. axb5 {[%clk 0:01:31.8]} 35... axb5 {[%clk
0:00:22.3]} 36. Bb3 {[%clk 0:01:32.7]} 36... Kd6 {[%clk 0:00:20.9]} 37. Ra1
{[%clk 0:01:32.7]} 37... Rh2 {[%clk 0:00:14]} 38. Ra6+ {[%clk 0:01:29.7]} 38...
Ke7 {[%clk 0:00:13.3]} 39. d6+ {[%clk 0:01:27.9]} 39... Kd7 {[%clk 0:00:11.4]}
40. Bxf7 {[%clk 0:01:24.1]} 40... Rd2+ {[%clk 0:00:11.9]} 41. Ke4 {[%clk
0:01:24.4]} 41... Rxd6 {[%clk 0:00:12.3]} 42. Be8+ {[%clk 0:01:20]} 42... Ke7
{[%clk 0:00:11.8]} 43. Rxd6 {[%clk 0:01:20]} 43... Kxd6 {[%clk 0:00:12.7]} 44.
Bxb5 {[%clk 0:01:20.9]} 44... Ke7 {[%clk 0:00:12.3]} 45. Bc4 {[%clk 0:01:20.9]}
45... Kf6 {[%clk 0:00:12.7]} 46. Bd3 {[%clk 0:01:20.6]} 46... g5 {[%clk
0:00:12.9]} 47. Be2 {[%clk 0:01:20.1]} 1/2-1/2

[Event "*** SCC Grand Prix: Titled Tuesday Blitz"]
[Site "Chess.com"]
[Date "2020.08.04"]
[Round "6"]
[White "ailime26"]
[Black "MasterKroket"]
[Result "0-1"]
[WhiteElo "1898"]
[BlackElo "2401"]
[TimeControl "180+1"]
[EndTime "14:50:17 PDT"]
[Termination "MasterKroket won on time"]

1. e4 {[%clk 0:03:00.9]} 1... c5 {[%clk 0:02:58.7]} 2. Nf3 {[%clk 0:03:00.4]}
2... e6 {[%clk 0:02:59.2]} 3. d4 {[%clk 0:03:00.2]} 3... cxd4 {[%clk 0:03:00.1]}
4. Nxd4 {[%clk 0:02:59.1]} 4... Nc6 {[%clk 0:03:00.2]} 5. Nc3 {[%clk 0:02:57.4]}
5... Qc7 {[%clk 0:03:00]} 6. Be3 {[%clk 0:02:51.8]} 6... a6 {[%clk 0:02:59.9]}
7. Be2 {[%clk 0:02:49.2]} 7... Nf6 {[%clk 0:02:59.8]} 8. O-O {[%clk 0:02:47.3]}
8... Bb4 {[%clk 0:03:00.5]} 9. Bd3 {[%clk 0:02:26.5]} 9... Ne5 {[%clk
0:02:55.8]} 10. f4 {[%clk 0:02:08.6]} 10... Neg4 {[%clk 0:02:46.9]} 11. Bd2
{[%clk 0:01:55.4]} 11... Bc5 {[%clk 0:02:44.6]} 12. Ne2 {[%clk 0:01:51.2]} 12...
e5 {[%clk 0:02:35.4]} 13. fxe5 {[%clk 0:01:31.9]} 13... Qxe5 {[%clk 0:02:34.9]}
14. Bf4 {[%clk 0:01:31]} 14... Bxd4+ {[%clk 0:02:34.8]} 15. Kh1 {[%clk
0:01:24.6]} 15... Qc5 {[%clk 0:02:27]} 16. Nxd4 {[%clk 0:00:46.9]} 16... Qxd4
{[%clk 0:02:26.8]} 17. e5 {[%clk 0:00:45.6]} 17... Nf2+ {[%clk 0:02:17.8]} 18.
Rxf2 {[%clk 0:00:44]} 18... Qxf2 {[%clk 0:02:18.7]} 19. Bg3 {[%clk 0:00:42.8]}
19... Qd4 {[%clk 0:02:12.3]} 20. exf6 {[%clk 0:00:38.4]} 20... Qxf6 {[%clk
0:02:09.9]} 21. Qe2+ {[%clk 0:00:15.2]} 21... Qe6 {[%clk 0:02:09.6]} 22. Qf3
{[%clk 0:00:12.9]} 22... O-O {[%clk 0:02:06.3]} 23. Re1 {[%clk 0:00:10.8]} 23...
Qb6 {[%clk 0:01:37.7]} 24. Be5 {[%clk 0:00:09]} 24... d5 {[%clk 0:01:30.8]} 25.
Qh5 {[%clk 0:00:07.6]} 25... Qh6 {[%clk 0:01:25.3]} 26. Qf3 {[%clk 0:00:06.4]}
26... Be6 {[%clk 0:01:19.1]} 27. Bf4 {[%clk 0:00:05.9]} 27... Qf6 {[%clk
0:01:14.9]} 28. Qh5 {[%clk 0:00:05.7]} 28... g6 {[%clk 0:01:14.9]} 29. Qh6
{[%clk 0:00:05.8]} 29... Qg7 {[%clk 0:01:13.1]} 30. Qg5 {[%clk 0:00:05.4]} 30...
f6 {[%clk 0:01:03.4]} 31. Qg3 {[%clk 0:00:05.1]} 31... Rfe8 {[%clk 0:01:02.5]}
32. c4 {[%clk 0:00:03.5]} 32... dxc4 {[%clk 0:01:01.1]} 33. Be4 {[%clk
0:00:03.6]} 33... Rad8 {[%clk 0:00:58]} 34. Bxb7 {[%clk 0:00:02.9]} 34... Qxb7
{[%clk 0:00:57.5]} 35. h3 {[%clk 0:00:02.4]} 35... Bd5 {[%clk 0:00:54.7]} 36.
Kh2 {[%clk 0:00:02.5]} 36... Rxe1 {[%clk 0:00:53.8]} 37. Qxe1 {[%clk 0:00:02.7]}
37... Qd7 {[%clk 0:00:52.5]} 38. Bg3 {[%clk 0:00:02]} 38... Qe6 {[%clk
0:00:52.5]} 39. Qa5 {[%clk 0:00:01.4]} 39... Re8 {[%clk 0:00:51.9]} 40. Qc7
{[%clk 0:00:01]} 40... Qe4 {[%clk 0:00:51.6]} 0-1